bitfinex/quotes_SOLUSD_20260103
["timestamp","ask_amount","ask_price","bid_price","bid_amount"]
[1767468367094,8.27674399,131.66,131.63,0.70510043]
[1767468377202,8.27597163,131.67,131.64,0.70510043]
[1767468452134,7.59438116,131.68,131.65,0.71428264]
[1767468452750,8.10733263,131.68,131.65,0.71428264]
[1767468457670,0.68628,131.67,131.65,0.71428264]
[1767468458466,0.6880308,131.68,131.65,0.71428264]
[1767468464573,8.28221715,131.68,131.65,0.71428264]
[1767468475474,7.59418635,131.68,131.65,0.71428264]
[1767468476178,8.10713782,131.68,131.65,0.71428264]
[1767468479286,8.10713782,131.68,131.65,3.54981088]
[1767468479780,0.51295147,131.68,131.65,3.54981088]
[1767468479960,8.31781215,131.7,131.67,0.71454828]
[1767468480161,0.47676776,131.69,131.66,2.83552824]
[1767468482183,0.47676776,131.69,131.66,3.55007652]
[1767468485573,0.47676776,131.69,131.67,0.71454828]
[1767468486982,0.72458,131.7,131.67,0.71454828]
[1767468488609,0.72458,131.7,131.67,8.30918944]
[1767468489707,0.72458,131.7,131.67,11.14471768]
[1767468496290,7.59292749,131.71,131.68,0.71454828]
[1767468496291,8.31750749,131.71,131.68,0.71454828]
[1767468497332,8.31750749,131.71,131.68,3.55007652]
[1767468502220,8.31750749,131.71,131.68,0.71454828]
[1767468504714,0.72458,131.71,131.69,0.71454828]
[1767468514530,0.72458,131.71,131.69,2.52811686]
[1767468528338,0.72458,131.71,131.69,0.71454828]
[1767468528539,0.72458,131.71,131.69,2.52811686]
[1767468530941,14.57838991,131.73,131.7,2.53230688]
[1767468531121,0.71838991,131.73,131.72,1.81356858]
[1767468531321,0.71838991,131.74,131.72,1.81356858]
[1767468532244,0.71838991,131.75,131.73,1.81356858]
[1767468534534,8.30812433,131.76,131.73,2.53230688]
[1767468535251,8.30812433,131.76,131.74,1.81356858]
[1767468536444,8.30812433,131.76,131.73,2.53230688]
[1767468538850,0.71838991,131.75,131.73,2.53230688]
[1767468540158,8.24327363,131.76,131.73,2.53230688]
[1767468541956,0.65353921,131.76,131.74,1.81356858]
[1767468542140,0.65353921,131.76,131.73,10.12334353]
[1767468544260,8.24260334,131.77,131.75,0.68129104]
[1767468544438,8.24260334,131.77,131.74,2.49485962]
[1767468545560,8.24260334,131.77,131.74,0.68129104]
[1767468545740,8.24260334,131.77,131.74,2.49485962]
[1767468549659,8.24260334,131.77,131.74,0.68129104]
[1767468551652,0.65353921,131.76,131.74,0.68129104]
[1767468552969,0.65353921,131.76,131.73,9.40460523]
[1767468553470,0.65353921,131.76,131.73,7.59103665]
[1767468554466,0.65353921,131.75,131.71,2.49485962]
[1767468554851,0.65353921,131.75,131.72,0.68129104]
[1767468555266,8.24382073,131.75,131.72,0.68129104]
[1767468558776,10.05738931,131.75,131.72,0.68129104]
[1767468561979,8.24382073,131.75,131.72,0.68129104]
[1767468562577,10.05738931,131.75,131.72,0.68129104]
[1767468563876,8.24382073,131.75,131.72,0.68129104]
[1767468565587,0.65353921,131.74,131.72,0.68129104]
[1767468567859,0.65353921,131.74,131.71,8.27349488]
[1767468569281,0.65353921,131.74,131.72,0.68129104]
[1767468572789,7.59028152,131.75,131.72,0.68129104]
[1767468573778,8.26030809,131.75,131.72,0.68129104]
[1767468601308,0.67502063,131.74,131.71,0.67523861]
[1767468603212,7.59028152,131.75,131.71,0.67523861]
[1767468603420,0.67502063,131.74,131.7,0.67523861]
[1767468603619,0.67502063,131.73,131.69,14.51523861]
[1767468603820,0.67502063,131.72,131.69,14.51523861]
[1767468603996,0.67502063,131.72,131.69,13.84]
[1767468604199,0.67502063,131.71,131.68,0.67523861]
[1767468604398,0.64502064,131.71,131.68,0.67523861]
[1767468604816,8.23780623,131.71,131.68,0.67523861]
[1767468612713,8.20780624,131.71,131.68,0.67523861]
[1767468614237,8.20780624,131.71,131.68,3.50753287]
[1767468617021,8.20780624,131.71,131.68,0.67523861]
[1767468622408,0.61502065,131.71,131.68,11.10163122]
[1767468622734,0.67502063,131.72,131.69,3.50753287]
[1767468622916,0.67502063,131.72,131.7,0.67523861]
[1767468623427,0.67502063,131.72,131.69,2.83229426]
[1767468623728,0.67502063,131.72,131.69,11.10111125]
[1767468625833,0.67502063,131.72,131.69,8.26881699]
[1767468628419,0.67502063,131.71,131.68,8.269211]
[1767468628917,0.67502063,131.71,131.68,7.769211]
[1767468632334,8.26750538,131.71,131.68,0.67523861]
[1767468633465,8.26750538,131.71,131.68,0.17523861]
[1767468634760,0.70620169,131.7,131.67,21.43462333]
[1767468634945,0.70620169,131.69,131.67,21.43462333]
[1767468635152,0.70620169,131.68,131.64,81.39041718]
[1767468635356,0.70620169,131.68,131.64,34.66353869]
[1767468635541,0.70620169,131.68,131.65,0.6392881]
[1767468635943,0.70620169,131.69,131.66,8.23433474]
[1767468659579,0.70620169,131.68,131.66,0.6392881]
[1767468661589,8.30040232,131.68,131.65,2.45240961]
[1767468662685,8.30040232,131.68,131.65,0.6392881]
[1767468664191,8.30040232,131.68,131.65,2.45240961]
[1767468665089,8.30040232,131.68,131.65,10.04830161]
[1767468665491,8.30040232,131.68,131.65,8.2351801]
[1767468665690,0.70620169,131.68,131.65,8.2351801]
[1767468676502,8.31449216,131.7,131.66,0.6392881]
[1767468676706,0.72141115,131.7,131.67,14.4992881]
[1767468678598,0.72141115,131.7,131.67,22.09398782]
[1767468681105,2.53453266,131.7,131.67,22.09398782]
[1767468681904,0.72141115,131.74,131.68,0.6392881]
[1767468682089,0.72141115,131.72,131.68,0.6392881]
[1767468682293,2.53453266,131.73,131.68,0.6392881]
[1767468682592,0.72141115,131.73,131.69,0.6392881]
[1767468682774,0.72141115,131.73,131.7,14.4992881]
[1767468683206,0.72141115,131.73,131.7,22.09173434]
[1767468683408,2.53453266,131.74,131.71,0.6392881]
[1767468684802,0.72141115,131.73,131.71,8.23168989]
[1767468684989,0.72141115,131.73,131.71,7.59240179]
[1767468714841,8.27778652,131.75,131.71,8.23168989]
[1767468715140,0.68746211,131.74,131.71,8.23168989]
[1767468715343,0.68746211,131.75,131.72,0.6392881]
[1767468715748,0.68746211,131.75,131.72,3.47208699]
[1767468717123,0.68746211,131.75,131.73,7.5912852]
[1767468717629,0.68746211,131.75,131.73,7.53128522]
[1767468738387,0.7028217,131.76,131.74,3.47208699]
[1767468738977,0.7028217,131.76,131.74,0.6392881]
[1767468739590,0.7028217,131.76,131.74,8.22981297]
[1767468740289,7.58800782,131.79,131.74,11.06261186]
[1767468741394,10.42080671,131.79,131.74,11.06261186]
[1767468742372,0.7028217,131.78,131.75,8.24621087]
[1767468747882,0.7028217,131.78,131.75,7.59002516]
[1767468753502,0.7028217,131.78,131.75,8.28930923]
[1767468764896,0.7028217,131.78,131.76,0.69928407]
[1767468767208,0.7028217,131.78,131.75,8.28930923]
[1767468773624,0.67842345,131.75,131.71,0.69928407]
[1767468773827,0.67842345,131.74,131.71,0.69928407]
[1767468775931,0.67842345,131.74,131.71,8.29160756]
[1767468776423,0.67842345,131.74,131.72,0.69928407]
[1767468776622,0.67842345,131.76,131.73,0.69928407]
[1767468778123,0.67842345,131.76,131.73,8.29048316]
[1767468779921,0.65913662,131.77,131.74,8.26818892]
[1767468780132,0.65913662,131.77,131.74,6.59192469]
[1767468780424,0.65913662,131.77,131.74,7.26943534]
[1767468782432,8.24816872,131.77,131.74,0.67751065]
[1767468782631,0.099,131.75,131.73,0.67751065]
[1767468782931,1.91051549,131.75,131.73,0.67751065]
[1767468783134,1.91051549,131.75,131.72,0.67751065]
[1767468783338,0.099,131.75,131.72,0.67751065]
[1767468793547,0.099,131.75,131.72,8.26934799]
[1767468832800,10.98114269,131.76,131.73,0.71282999]
[1767468845012,8.14906326,131.76,131.73,0.71282999]
[1767468846615,10.98114269,131.76,131.73,0.71282999]
[1767468849722,8.14906326,131.76,131.73,0.71282999]
[1767468857005,2.83207943,131.77,131.73,0.71282999]
[1767468857006,10.9804346,131.77,131.74,0.70200127]
[1767468857204,10.9804346,131.77,131.74,0.64200128]
[1767468857829,8.14835517,131.77,131.74,0.64200128]
[1767468858926,10.9804346,131.77,131.74,0.64200128]
[1767468859628,7.58921855,131.77,131.74,0.64200128]
[1767468861034,7.68821855,131.77,131.74,0.64200128]
[1767468862718,7.58921855,131.77,131.74,0.64200128]
[1767468863933,7.68821855,131.77,131.74,0.64200128]
[1767468866135,10.52029798,131.77,131.74,0.64200128]
[1767468866936,0.099,131.77,131.74,0.64200128]
[1767468867539,2.93107943,131.77,131.74,0.64200128]
[1767468868437,10.52031549,131.77,131.74,0.64200128]
[1767468870045,0.099,131.77,131.74,0.64200128]
[1767468872444,7.68798079,131.77,131.74,0.64200128]
[1767468872625,9.50015903,131.77,131.74,0.64200128]
[1767468880662,0.60883738,131.74,131.7,0.67320718]
[1767468880844,2.42101562,131.74,131.7,0.67320718]
[1767468882965,10.01209597,131.74,131.7,0.67320718]
[1767468883978,0.10919623,131.73,131.7,0.67320718]
[1767468885677,9.5131451,131.73,131.7,0.67320718]
[1767468886559,0.60384097,131.72,131.7,0.67320718]
[1767468887250,10.02308548,131.73,131.7,0.67320718]
[1767468897885,8.21090724,131.73,131.7,0.67320718]
[1767468898088,10.02308548,131.73,131.7,0.67320718]
[1767468899881,0.099,131.72,131.69,0.65769874]
[1767468900186,10.02308548,131.73,131.69,0.65769874]
[1767468900978,0.099,131.72,131.69,0.65769874]
[1767468901390,10.02308548,131.73,131.69,0.65769874]
[1767468901683,1.81217824,131.72,131.69,0.65769874]
[1767468901984,1.78217824,131.72,131.7,0.65769874]
[1767468902186,1.78217824,131.72,131.69,0.65769874]
[1767468902490,1.88117824,131.72,131.69,0.65769874]
[1767468903689,1.78217824,131.72,131.69,0.65769874]
[1767468904664,1.75217825,131.72,131.69,0.65769874]
[1767468907388,10.02308548,131.73,131.69,0.65769874]
[1767468910894,1.81217824,131.72,131.69,0.65769874]
[1767468911088,1.78217825,131.72,131.7,0.65769874]
[1767468917705,1.75217826,131.72,131.7,0.65769874]
[1767468924107,1.72217827,131.72,131.7,0.65769874]
[1767468925107,1.72217827,131.72,131.68,7.59395636]
[1767468927110,1.72217827,131.72,131.69,0.65769874]
[1767468928711,2.4315333,131.72,131.69,0.65769874]
[1767468930813,2.4315333,131.72,131.7,0.68746527]
[1767468932216,0.70935503,131.72,131.7,0.68746527]
[1767468935317,0.70935503,131.72,131.69,7.59356694]
[1767468935318,0.70935503,131.72,131.68,7.59416767]
[1767468937147,0.70935503,131.72,131.69,0.68746527]
[1767468950148,0.70935503,131.72,131.69,8.28103548]
[1767468952951,0.70935503,131.72,131.7,0.68746527]
[1767468956153,0.70935503,131.72,131.69,8.28104114]
[1767468960462,0.70548588,131.75,131.71,0.70661379]
[1767468961447,8.29566597,131.75,131.72,0.70661379]
[1767468964955,0.70548588,131.75,131.73,0.70661379]
[1767468965147,0.70548588,131.76,131.73,0.70661379]
[1767468965459,21.44859712,131.78,131.73,0.70661379]
[1767468965651,0.70548588,131.77,131.74,8.29715949]
[1767468966052,0.70548588,131.77,131.74,7.5905457]
[1767468976161,0.70548588,131.77,131.74,10.42401289]
[1767468981179,0.70548588,131.77,131.74,11.13062668]
[1767468981578,0.70548588,131.77,131.75,0.70661379]
[1767468981879,0.70548588,131.77,131.75,0.64661379]
[1767468982067,8.294083,131.78,131.75,0.64661379]
[1767468982577,0.70548588,131.77,131.74,10.42401289]
[1767468983683,0.70548588,131.77,131.74,11.13062668]
[1767468990380,0.69992486,131.78,131.75,0.65996533]
[1767468990573,0.69992486,131.78,131.76,0.65996533]
[1767468993383,0.65960504,131.77,131.71,0.71296215]
[1767468993587,7.58863311,131.78,131.72,0.71296215]
[1767468993588,0.65960504,131.75,131.72,0.71296215]
[1767469000200,0.65960504,131.75,131.72,8.30476057]
[1767469004273,0.65960504,131.74,131.7,0.71296215]
[1767469004613,2.47209456,131.74,131.7,0.71296215]
[1767469004995,0.65960504,131.73,131.7,0.71296215]
[1767469005693,0.65960504,131.73,131.7,8.30594955]
[1767469016782,8.25092917,131.73,131.7,0.71296215]
[1767469016988,10.06341869,131.73,131.7,0.71296215]
[1767469017511,10.0334187,131.73,131.7,0.71296215]
[1767469018308,9.40381365,131.73,131.7,0.71296215]
[1767469019607,10.06341869,131.73,131.7,0.71296215]
[1767469021809,0.65896843,131.72,131.7,0.71296215]
[1767469022002,0.62896844,131.72,131.7,0.71296215]
[1767469023511,0.62896844,131.72,131.69,8.26860498]
[1767469024309,0.59896845,131.72,131.69,8.26860498]
[1767469024696,0.59896845,131.72,131.7,0.67520222]
[1767469033519,2.41145797,131.72,131.7,0.67520222]
[1767469033719,0.59896845,131.72,131.7,0.67520222]
[1767469035317,0.65896843,131.71,131.68,22.10935049]
[1767469035620,0.59896845,131.71,131.68,22.10935049]
[1767469036409,0.59896845,131.71,131.69,0.67520222]
[1767469037401,0.56896846,131.71,131.69,0.67520222]
[1767469047306,0.56896846,131.71,131.68,22.10935049]
[1767469049525,0.65896843,131.7,131.66,0.67520222]
[1767469049728,0.65896843,131.7,131.66,14.53520222]
[1767469049729,1.81248952,131.7,131.66,14.53520222]
[1767469050727,1.81248952,131.71,131.67,0.70250333]
[1767469051612,0.71286265,131.7,131.67,0.70250333]
[1767469051921,0.68286266,131.7,131.67,8.29715456]
[1767469057942,0.65286267,131.7,131.67,8.29715456]
[1767469061641,0.65286267,131.7,131.67,7.59465123]
[1767469061941,0.65286267,131.7,131.67,8.28274094]
[1767469065247,0.62286268,131.7,131.67,8.28274094]
[1767469076345,3.45688015,131.7,131.67,8.28274094]
[1767469076554,0.71286265,131.69,131.67,8.28274094]
[1767469076746,0.68286266,131.69,131.67,8.28274094]
[1767469077146,2.83401747,131.7,131.67,8.28274094]
[1767469078659,0.71286265,131.71,131.67,8.28274094]
[1767469078835,3.54688012,131.7,131.67,8.28274094]
[1767469079556,3.54688012,131.7,131.67,0.68808971]
[1767469081066,11.14009382,131.7,131.67,0.68808971]
[1767469081275,0.65539184,131.68,131.66,13.86]
[1767469081567,0.62539185,131.68,131.66,13.86]
[1767469082165,3.45940932,131.68,131.66,13.86]
[1767469083204,2.83401747,131.68,131.63,0.70259019]
[1767469083489,2.83401747,131.68,131.64,14.56259019]
[1767469083490,3.48940931,131.67,131.64,14.56259019]
[1767469083787,3.45940932,131.67,131.64,14.56259019]
[1767469091311,0.65539184,131.67,131.64,14.56259019]
[1767469094131,8.25014757,131.67,131.64,14.56259019]
[1767469098715,8.25014757,131.67,131.63,7.59685968]
[1767469098716,0.65539184,131.66,131.63,0.70259019]
[1767469098915,0.65539184,131.65,131.62,0.70259019]
[1767469099126,0.62539185,131.65,131.62,0.70259019]
[1767469100125,7.59647523,131.64,131.62,0.70259019]
[1767469101025,8.25186707,131.64,131.62,0.70259019]
[1767469104218,8.25186707,131.64,131.61,14.56259019]
[1767469105033,8.22186708,131.64,131.61,14.56259019]
[1767469107539,8.19186709,131.64,131.61,14.56259019]
[1767469108637,0.65539184,131.63,131.61,14.56259019]
[1767469108839,7.59589821,131.65,131.61,14.56259019]
[1767469110839,8.31327525,131.67,131.64,0.71594544]
[1767469111044,0.71853082,131.67,131.65,0.71594544]
[1767469111433,8.31289344,131.68,131.65,0.71594544]
[1767469112441,0.71853082,131.66,131.64,0.71594544]
[1767469112620,3.55254829,131.66,131.63,0.71594544]
[1767469112825,0.71853082,131.65,131.63,0.71594544]
[1767469113642,3.55254829,131.67,131.63,0.71594544]
[1767469113835,0.71853082,131.67,131.64,0.71594544]
[1767469115450,0.71853082,131.68,131.65,0.71594544]
[1767469115829,8.31272121,131.68,131.65,0.71594544]
[1767469121353,0.71853082,131.69,131.66,0.71594544]
[1767469135171,8.31225104,131.69,131.66,0.71594544]
[1767469135359,0.71853082,131.68,131.65,22.17176773]
[1767469137579,0.71853082,131.68,131.65,21.45582229]
[1767469137766,0.71853082,131.68,131.66,0.71594544]
[1767469145267,0.68853082,131.68,131.66,0.71594544]
[1767469145795,7.59372022,131.69,131.66,0.71594544]
[1767469147378,8.2659074,131.69,131.66,0.71594544]
[1767469147689,7.59372022,131.69,131.66,0.71594544]
[1767469147984,8.2659074,131.69,131.66,0.71594544]
[1767469155587,0.67218718,131.68,131.65,21.45582229]
[1767469155893,0.64218718,131.68,131.65,21.45582229]
[1767469156603,37.30179967,131.84,131.66,0.6783149]
[1767469156782,9.40397779,131.76,131.68,0.6783149]
[1767469156978,1.81442103,131.75,131.7,0.6783149]
[1767469157193,1.81442103,131.74,131.7,0.6783149]
[1767469157400,1.81442103,131.73,131.7,0.6783149]
[1767469157597,7.59217864,131.72,131.68,11.80971406]
[1767469157899,2.48660821,131.72,131.69,0.6783149]
[1767469159002,0.67218718,131.71,131.69,0.6783149]
[1767469159185,0.67218718,131.71,131.68,22.13216128]
[1767469161730,2.48660821,131.71,131.68,22.13216128]
[1767469162006,0.67218718,131.71,131.68,22.13216128]
[1767469162985,2.48660821,131.71,131.68,22.13216128]
[1767469166108,0.67218718,131.71,131.68,22.13216128]
[1767469169412,0.67218718,131.71,131.69,0.6783149]
[1767469173121,0.67218718,131.71,131.69,0.61831492]
[1767469174001,2.48660821,131.71,131.69,0.61831492]
[1767469178543,3.50616826,131.71,131.69,0.61831492]
[1767469180529,3.50616826,131.71,131.69,0.55831494]
[1767469187320,3.50616826,131.71,131.69,0.49831496]
[1767469187928,3.50616826,131.71,131.68,21.45384638]
[1767469188443,0.67218718,131.71,131.68,21.45384638]
[1767469189525,0.67218718,131.71,131.68,22.14933395]
[1767469191243,0.67218718,131.71,131.69,0.69548757]
[1767469194146,0.67218718,131.71,131.69,0.63548758]
[1767469198349,0.67218718,131.71,131.68,21.45384638]
[1767469198650,0.67218718,131.71,131.68,22.14933395]
[1767469198950,0.67218718,131.71,131.69,0.69548757]
[1767469200854,8.26464858,131.71,131.69,0.69548757]
[1767469204261,0.71317563,131.69,131.65,0.71308515]
[1767469204463,3.54715671,131.67,131.64,0.71308515]
[1767469204639,2.83398108,131.66,131.64,0.71308515]
[1767469205455,11.14261695,131.66,131.63,14.57308515]
[1767469206056,11.14261695,131.66,131.64,0.71308515]
[1767469206237,3.54715671,131.66,131.64,0.71308515]
[1767469206942,3.54715671,131.66,131.63,22.1701049]
[1767469207140,11.14253981,131.66,131.63,0.71308515]
[1767469207340,11.14253981,131.66,131.63,14.57308515]
[1767469208352,0.71317563,131.65,131.63,14.57308515]
[1767469210970,0.71317563,131.65,131.63,0.71308515]
[1767469216048,0.71317563,131.65,131.62,14.57308515]
[1767469216245,0.71317563,131.65,131.63,0.71308515]
[1767469224083,7.5953831,131.66,131.63,0.71308515]
[1767469225072,8.30855873,131.66,131.63,0.71308515]
[1767469231095,0.72387443,131.67,131.64,0.69704299]
[1767469232886,3.55785551,131.67,131.64,0.69704299]
[1767469238504,2.53882455,131.67,131.64,0.69704299]
[1767469248214,10.13357036,131.67,131.64,0.69704299]
[1767469260227,0.66873853,131.69,131.65,1.81495012]
[1767469260532,0.66873853,131.69,131.67,0.70834891]
[1767469261430,0.66873853,131.7,131.67,0.70834891]
[1767469263027,0.66873853,131.71,131.68,0.70834891]
[1767469263325,0.66873853,131.71,131.68,0.64834891]
[1767469265029,8.26080402,131.72,131.68,7.59409523]
[1767469265334,0.66873853,131.71,131.69,0.70834891]
[1767469265513,0.66873853,131.71,131.69,0.58834891]
[1767469268610,0.66873853,131.71,131.69,0.55985281]
[1767469268826,0.66873853,131.71,131.69,0.52834891]
[1767469270925,8.26123055,131.71,131.68,14.56834891]
[1767469289632,0.66873853,131.71,131.68,14.56834891]
[1767469289840,0.66873853,131.71,131.69,0.70834891]
[1767469290053,0.66873853,131.71,131.69,0.64834891]
[1767469291929,8.29577974,131.72,131.69,0.64834891]
[1767469295449,8.29577974,131.72,131.69,0.58834891]
[1767469301754,8.29577974,131.72,131.69,0.52834891]
[1767469303134,0.70368316,131.71,131.69,0.52834891]
[1767469308459,0.70368316,131.71,131.68,21.4538675]
[1767469308660,0.70368316,131.71,131.68,22.13456062]
[1767469350686,0.69290377,131.7,131.68,13.86]
[1767469350886,0.69290377,131.7,131.67,13.86]
[1767469351092,0.65643052,131.69,131.65,22.15141108]
[1767469351790,0.65643052,131.69,131.65,24.9847829]
[1767469355598,0.65643052,131.69,131.66,0.69569931]
[1767469356092,0.65643052,131.69,131.66,3.52907113]
[1767469357495,0.65643052,131.69,131.66,11.12399308]
[1767469362586,0.65643052,131.69,131.66,10.10453131]
[1767469375182,8.24908934,131.71,131.67,0.69569931]
[1767469375382,0.65643052,131.7,131.68,0.69569931]
[1767469375611,0.65643052,131.7,131.68,14.55569931]
[1767469375904,0.65643052,131.7,131.68,13.86]
[1767469379818,0.70538472,131.71,131.68,14.55569931]
[1767469380221,0.70538472,131.71,131.68,22.14981874]
[1767469381608,0.70538472,131.74,131.7,0.69569931]
[1767469381810,0.70538472,131.74,131.71,13.83232205]
[1767469382827,0.70538472,131.73,131.71,13.83232205]
[1767469383029,0.70538472,131.73,131.71,21.42458783]
[1767469383715,7.59026961,131.75,131.71,23.87419719]
[1767469383716,0.70538472,131.75,131.71,23.87419719]
[1767469385427,0.70538472,131.74,131.71,22.06027011]
[1767469388245,0.70538472,131.74,131.71,23.87418016]
[1767469396740,18.96994445,131.79,131.72,0.69859756]
[1767469397033,0.70538472,131.76,131.72,2.45250761]
[1767469397232,0.70538472,131.76,131.72,0.63859756]
[1767469398158,0.70538472,131.76,131.72,8.22991034]
[1767469398335,0.70538472,131.75,131.72,8.22991034]
[1767469403530,0.70538472,131.75,131.72,10.04382039]
[1767469404554,0.70538472,131.75,131.72,8.22991034]
[1767469407456,0.70538472,131.75,131.72,10.04382039]
[1767469409072,0.70538472,131.75,131.72,8.22991034]
[1767469409236,0.70538472,131.75,131.72,10.04382039]
[1767469409637,0.70538472,131.75,131.72,8.22991034]
[1767469409865,0.70538472,131.75,131.72,10.04382039]
[1767469413459,0.70538472,131.75,131.72,8.22991034]
[1767469418263,0.70088923,131.74,131.71,8.26141544]
[1767469418558,0.70088923,131.74,131.7,10.07603017]
[1767469418761,0.70088923,131.74,131.71,13.84]
[1767469419660,0.70088923,131.74,131.71,22.1012713]
[1767469424279,0.70088923,131.73,131.71,14.50916884]
[1767469435593,0.70088923,131.75,131.72,0.66916884]
[1767469436995,0.70088923,131.75,131.72,8.26098382]
[1767469449701,0.70088923,131.75,131.72,11.09354112]
[1767469455482,0.70088923,131.75,131.72,8.26098382]
[1767469461711,0.70088923,131.75,131.72,11.09354112]
[1767469468811,0.67173611,131.74,131.71,0.71124822]
[1767469469017,0.67173611,131.74,131.71,14.55124822]
[1767469470216,0.67173611,131.74,131.7,8.2466919]
[1767469470395,0.70058122,131.73,131.7,13.84]
[1767469471919,0.66883045,131.72,131.7,13.84]
[1767469482424,0.66883045,131.72,131.7,14.55216361]
[1767469484905,0.66883045,131.76,131.72,0.55608403]
[1767469485116,0.66883045,131.76,131.73,17.24864133]
[1767469486220,0.66883045,131.76,131.73,24.83980083]
[1767469486605,0.66883045,131.76,131.73,23.81910211]
[1767469490537,0.66883045,131.76,131.73,22.00724353]
[1767469490734,0.66883045,131.76,131.73,23.81910211]
[1767469501042,1.81185858,131.74,131.69,2.36794261]
[1767469501232,0.65838955,131.73,131.7,13.84]
[1767469504243,0.65838955,131.73,131.69,9.96110655]
[1767469504438,0.65838955,131.73,131.7,13.84]
[1767469510932,0.65838955,131.73,131.7,21.43298654]
[1767469513251,0.65838955,131.76,131.73,0.55608403]
[1767469513553,0.65838955,131.76,131.73,16.20794261]
[1767469514644,0.65838955,131.76,131.73,23.79869294]
[1767469515655,0.65838955,131.76,131.74,1.81185858]
[1767469515855,0.65838955,131.76,131.74,9.40256742]
[1767469516455,0.65838955,131.76,131.74,9.34256742]
[1767469517457,0.65838955,131.77,131.75,1.81185858]
[1767469517859,0.65838955,131.77,131.74,8.08679287]
[1767469518062,0.65838955,131.77,131.75,1.81185858]
[1767469518354,0.65838955,131.77,131.74,8.08679287]
[1767469518558,0.65838955,131.77,131.74,9.89865145]
[1767469520560,0.65838955,131.77,131.74,8.08679287]
[1767469522867,0.65838955,131.77,131.74,7.53070884]
[1767469529067,0.65838955,131.77,131.74,7.47070884]
[1767469533351,0.71060648,131.74,131.7,0.55608403]
[1767469533676,0.71060648,131.74,131.71,13.84]
[1767469533965,2.52246506,131.74,131.71,21.4324259]
[1767469535645,1.81185858,131.73,131.71,21.4324259]
[1767469536051,1.81185858,131.73,131.71,21.98850993]
[1767469537778,1.81185858,131.73,131.71,8.14850993]
[1767469537963,1.81185858,131.73,131.71,21.98850993]
[1767469541487,0.71060648,131.74,131.71,21.98850993]
[1767469542778,0.71060648,131.74,131.71,8.14850993]
[1767469542976,0.71060648,131.74,131.71,21.98850993]
[1767469545586,0.71060648,131.74,131.71,8.14850993]
[1767469545781,0.71060648,131.74,131.71,21.98850993]
[1767469547186,0.71060648,131.74,131.71,8.14850993]
[1767469547387,0.71060648,131.74,131.71,21.98850993]
[1767469556890,0.71060648,131.74,131.71,21.4324259]
[1767469560293,0.71816323,131.73,131.68,0.55608403]
[1767469560472,0.71816323,131.72,131.68,21.98971968]
[1767469560794,0.71816323,131.71,131.68,8.15019609]
[1767469561790,0.71816323,131.7,131.67,21.99067861]
[1767469566493,0.71816323,131.7,131.67,8.15067861]
[1767469566675,0.71816323,131.7,131.67,22.01067861]
[1767469567291,0.71816323,131.7,131.67,8.15067861]
[1767469567491,0.71816323,131.7,131.67,22.01067861]
[1767469572399,0.71816323,131.7,131.67,8.15067861]
[1767469572700,0.71816323,131.7,131.67,22.01067861]
[1767469582509,0.71816323,131.7,131.68,0.55608403]
[1767469582810,8.31066027,131.71,131.68,0.55608403]
[1767469583383,8.31066027,131.71,131.68,14.41608403]
[1767469583590,0.71816323,131.72,131.69,0.55608403]
[1767469583799,8.30991333,131.73,131.69,0.55608403]
[1767469584084,0.71816323,131.72,131.69,0.55608403]
[1767469587912,8.3100464,131.72,131.69,0.55608403]
[1767469588910,0.71816323,131.71,131.69,0.55608403]
[1767469590715,8.29247353,131.72,131.69,0.55608403]
[1767469593015,0.6650087,131.71,131.69,0.55608403]
[1767469606236,0.6650087,131.71,131.68,24.84258879]
[1767469608540,0.6650087,131.71,131.68,23.82338012]
[1767469613438,0.6650087,131.71,131.68,22.00993241]
[1767469621943,0.71775234,131.76,131.71,0.55608403]
[1767469622150,0.71775234,131.76,131.73,0.55608403]
[1767469622320,0.71775234,131.76,131.73,1.81344771]
[1767469622521,0.71775234,131.77,131.73,1.81344771]
[1767469623364,0.71775234,131.77,131.73,9.40446942]
[1767469624420,0.71775234,131.77,131.73,9.90055345]
[1767469627946,0.71775234,131.77,131.74,0.49608403]
[1767469628123,0.71775234,131.77,131.74,2.30953174]
[1767469629625,0.71775234,131.77,131.75,13.84]
[1767469629849,0.71775234,131.77,131.75,13.78]
[1767469638384,0.71775234,131.79,131.76,0.49608403]
[1767469638539,0.71775234,131.79,131.76,0.43608403]
[1767469639344,0.71775234,131.79,131.75,23.18333077]
[1767469640652,0.71775234,131.79,131.75,23.6194148]
[1767469641757,0.71775234,131.78,131.75,21.80596709]
[1767469679577,0.66445382,131.79,131.76,8.02563869]
[1767469682597,0.66445382,131.79,131.76,10.8560267]
[1767469682795,8.25967861,131.8,131.77,0.43608403]
[1767469682995,0.67223884,131.79,131.76,8.02563869]
[1767469684695,0.67223884,131.79,131.76,10.8560267]
[1767469688507,0.67223884,131.79,131.76,8.02563869]
[1767469689708,0.67223884,131.79,131.76,10.8560267]
[1767469699649,0.67223884,131.8,131.77,0.43608403]
[1767469704142,0.67223884,131.8,131.77,8.02504393]
[1767469716159,0.67223884,131.8,131.77,0.43608403]
[1767469720860,0.67223884,131.8,131.76,10.85579579]
[1767469723258,8.25962545,131.8,131.76,10.85579579]